[Event "15th Arad Open 2022"]
[Site "Arad"]
[Date "2022.08.09"]
[Round "1.1"]
[White "Sedlak, Nikola"]
[Black "Balaban-Voia, Alexandru"]
[Result "1/2-1/2"]
[ECO "B08"]
[WhiteElo "2480"]
[BlackElo "1869"]
[Annotator "ChessBase"]
[PlyCount "86"]
[EventDate "2022.08.08"]
[EventType "swiss"]
[EventCountry "ROU"]
[SourceTitle "playchess.com"]
[Source "ChessBase"]
[SourceQuality "1"]
[TimeControl "5400+30"]

1. e4 {[%emt 0:00:02]} g6 {[%emt 0:00:09]} 2. d4 {[%emt 0:00:09]} Bg7 {[%emt 0:00:06]} 3. Nc3 {[%emt 0:00:06]} d6 {[%emt 0:00:09]} 4. Be3 {[%emt 0:00:16]} c6 {[%emt 0:00:39]} 5. Nf3 {[%emt 0:00:21]} Nf6 {[%emt 0:00:54]} 6. h3 {[%emt 0:00:15]} O-O {[%emt 0:01:11]} 7. Qd2 {[%emt 0:00:09]} Nbd7 {[%emt 0:04:24]} 8. Bh6 {[%emt 0:02:02]} Qa5 {[%emt 0:20:44]} 9. Bd3 {[%emt 0:01:34]} e5 {[%emt 0:04:21]} 10. O-O {[%emt 0:00:49]} exd4 {[%emt 0:07:42]} 11. Nxd4 {[%emt 0:00:12]} Nc5 {[%emt 0:03:47]} 12. Bxg7 {[%emt 0:01:17]} Kxg7 {[%emt 0:00:08]} 13. Rae1 {[%emt 0:00:42]} Qb4 {[%emt 0:11:54]} 14. Nb3 {[%emt 0:01:08]} Be6 {[%emt 0:05:04]} 15. Nxc5 {[%emt 0:00:46]} dxc5 {[%emt 0:09:47]} 16. e5 {[%emt 0:00:08]} Nd5 {[%emt 0:04:27]} 17. Re4 {[%emt 0:00:58]} Qa5 {[%emt 0:04:56]} 18. Rh4 {[%emt 0:02:38]} h5 {[%emt 0:00:59]} 19. Rxh5 {[%emt 0:00:49]} Rh8 {[%emt 0:00:08]} 20. Rxh8 {[%emt 0:00:22]} Rxh8 {[%emt 0:00:07]} 21. f4 {[%emt 0:04:00]} c4 {[%emt 0:03:43]} 22. Be4 {[%emt 0:00:45]} Qb6+ {[%emt 0:01:11]} 23. Kh2 {[%emt 0:00:12]} Ne3 {[%emt 0:04:30]} 24. Rf3 {[%emt 0:02:50]} Ng4+ {[%emt 0:02:28]} 25. Kh1 {[%emt 0:00:11]} Qxb2 {[%emt 0:03:01]} 26. Rf1 {[%emt 0:00:08]} Qb6 {[%emt 0:00:42]} 27. f5 {[%emt 0:00:27]} Qe3 {[%emt 0:01:02]} 28. f6+ {[%emt 0:01:27]} Kg8 {[%emt 0:04:07]} 29. Qd8+ {[%emt 0:01:24]} Kh7 {[%emt 0:00:05]} 30. Bxg6+ {[%emt 0:00:06]} Kxg6 {[%emt 0:01:37]} 31. Qxh8 {[%emt 0:00:11]} Nf2+ {[%emt 0:00:47]} 32. Rxf2 {[%emt 0:00:10]} Qxf2 {[%emt 0:00:46]} 33. Qg7+ {[%emt 0:15:59]} Kf5 {[%emt 0:00:04]} 34. Qg4+ {[%emt 0:00:05]} Kxe5 {[%emt 0:01:51]} 35. Qd1 {[%emt 0:00:04]} Bd5 {[%emt 0:00:00]} 36. Qh5+ {[%emt 0:02:10]} Kxf6 {[%emt 0:00:27]} 37. Nxd5+ {[%emt 0:01:05]} cxd5 {[%emt 0:00:03]} 38. Qxd5 {[%emt 0:00:06]} Qxc2 {[%emt 0:00:13]} 39. Qd6+ {[%emt 0:00:37]} Kg7 {[%emt 0:00:48]} 40. Qg3+ {[%emt 0:00:00]} Kh7 {[%emt 0:00:00]} 41. Qh4+ {[%emt 0:00:00]} Kg6 {[%emt 0:00:00]} 42. Qg3+ {[%emt 0:00:00]} Kf6 {[%emt 0:00:00]} 43. Qd6+ {[%emt 0:00:00]} Kg7 {[%emt 0:00:00]} 1/2-1/2

[Event "15th Arad Open 2022"]
[Site "Arad"]
[Date "2022.08.09"]
[Round "1.2"]
[White "Muranyi, Erich"]
[Black "Manolache, Marius"]
[Result "0-1"]
[ECO "B08"]
[WhiteElo "1867"]
[BlackElo "2469"]
[Annotator "RC"]
[PlyCount "140"]
[EventDate "2022.08.08"]
[EventType "swiss"]
[EventCountry "ROU"]
[SourceTitle "playchess.com"]
[Source "ChessBase"]
[SourceQuality "1"]
[TimeControl "5400+30"]

1. e4 {[%emt 0:00:03]} d6 {[%emt 0:00:11]} 2. d4 {[%emt 0:00:07]} Nf6 {[%emt 0:00:05]} 3. Nc3 {[%emt 0:00:05]} g6 {[%emt 0:00:05]} 4. Nf3 {[%emt 0:00:56]} Bg7 {[%emt 0:00:15]} 5. Be2 {[%emt 0:00:08]} O-O {[%emt 0:00:17]} 6. O-O {[%emt 0:00:06]} a6 {[%emt 0:00:30]} 7. a4 {[%emt 0:01:30]} b6 {[%emt 0:00:50]} 8. Bf4 {[%emt 0:04:52]} Bb7 {[%emt 0:05:46]} 9. e5 {[%emt 0:02:08]} Nfd7 {[%emt 0:00:37]} 10. e6 {[%emt 0:05:22]} fxe6 {[%emt 0:00:45]} 11. Ng5 {[%emt 0:00:10]} Rf6 {[%emt 0:00:09]} 12. Bg4 {[%emt 0:04:49]} Nf8 {[%emt 0:00:22]} 13. Qd2 {[%emt 0:03:35]} h6 {[%emt 0:12:08]} 14. Nge4 {[%emt 0:02:18]} Kh7 {[%emt 0:00:12]} 15. Nxf6+ {[%emt 0:02:16]} exf6 {[%emt 0:00:07]} 16. Qd3 {[%emt 0:14:54]} Nc6 {[%emt 0:01:22]} 17. Be3 {[%emt 0:19:03]} f5 {[%emt 0:02:06]} 18. Be2 {[%emt 0:00:58]} Qf6 {[%emt 0:00:34]} 19. Rad1 {[%emt 0:01:07]} f4 {[%emt 0:00:50]} 20. Bc1 {[%emt 0:04:47]} Nxd4 {[%emt 0:00:24]} 21. f3 {[%emt 0:00:48]} Nd7 {[%emt 0:05:29]} 22. Ne4 {[%emt 0:00:43]} Qh4 {[%emt 0:00:50]} 23. c3 {[%emt 0:01:38]} Nf5 {[%emt 0:00:49]} 24. Rfe1 {[%emt 0:02:11]} d5 {[%emt 0:04:23]} 25. Nf2 {[%emt 0:00:46]} Bf8 {[%emt 0:02:14]} 26. Bf1 {[%emt 0:01:41]} Bc5 {[%emt 0:01:14]} 27. Qe2 {[%emt 0:01:57]} b5 {[%emt 0:03:08]} 28. b4 {[%emt 0:02:58]} Bb6 {[%emt 0:00:24]} 29. a5 {[%emt 0:00:22]} Ba7 {[%emt 0:00:05]} 30. Bxf4 {[%emt 0:03:16]} Bxf2+ {[%emt 0:12:54]} 31. Qxf2 {[%emt 0:00:06]} Qxf4 {[%emt 0:00:04]} 32. Rxe6 {[%emt 0:00:07]} Nf8 {[%emt 0:02:08]} 33. g3 {[%emt 0:01:02]} Qg5 {[%emt 0:00:08]} 34. f4 {[%emt 0:00:40]} Qd8 {[%emt 0:00:12]} 35. Ree1 {[%emt 0:00:34]} Qf6 {[%emt 0:02:16]} 36. Qc5 {[%emt 0:01:34]} Ne6 {[%emt 0:00:33]} 37. Qf2 {[%emt 0:03:00]} Nfg7 {[%emt 0:06:25]} 38. Re5 {[%emt 0:00:45]} Rd8 {[%emt 0:02:05]} 39. Rde1 {[%emt 0:01:13]} d4 {[%emt 0:00:43]} 40. Bh3 {[%emt 0:00:00]} d3 {[%emt 0:00:00]} 41. Qd2 {[%emt 0:00:00]} Rd6 {[%emt 0:00:00]} 42. R1e3 {[%emt 0:00:00]} Nxf4 {[%emt 0:00:00]} 43. gxf4 {[%emt 0:00:00]} Qxf4 {[%emt 0:00:00]} 44. Bf1 {[%emt 0:00:00]} Qg4+ {[%emt 0:00:00]} 45. Rg3 {[%emt 0:00:00]} Qd7 {[%emt 0:00:00]} 46. Bh3 {[%emt 0:00:00]} Qd8 {[%emt 0:00:57]} 47. Ree3 {[%emt 0:00:00]} Nh5 {[%emt 0:00:53]} 48. Rg4 {[%emt 0:00:00]} Bc8 {[%emt 0:07:12]} 49. Rge4 {[%emt 0:00:01]} Qg5+ {[%emt 0:00:21]} 50. Bg2 {[%emt 0:03:08]} Bf5 {[%emt 0:00:30]} 51. Re7+ {[%emt 0:00:21]} Ng7 {[%emt 0:00:12]} 52. Rxc7 {[%emt 0:03:33]} Re6 {[%emt 0:03:09]} 53. Rxd3 {[%emt 0:01:23]} Bxd3 {[%emt 0:00:26]} 54. Qxd3 {[%emt 0:00:23]} Re1+ {[%emt 0:01:47]} 55. Kf2 {[%emt 0:00:17]} Re5 {[%emt 0:00:27]} 56. Rf7 {[%emt 0:05:20]} h5 {[%emt 0:00:34]} 57. h3 {[%emt 0:01:57]} Kh6 {[%emt 0:01:42]} 58. Kg1 {[%emt 0:01:32]} Nf5 {[%emt 0:00:24]} 59. Qf3 {[%emt 0:03:19]} Re3 {[%emt 0:02:26]} 60. Qf2 {[%emt 0:00:06]} Rxc3 {[%emt 0:01:14]} 61. Kh2 {[%emt 0:00:13]} Rd3 {[%emt 0:02:04]} 62. Ra7 {[%emt 0:02:16]} Rd2 {[%emt 0:00:41]} 63. Qf3 {[%emt 0:00:10]} Qe3 {[%emt 0:00:51]} 64. Qxe3+ {[%emt 0:01:14]} Nxe3 {[%emt 0:00:06]} 65. Rxa6 {[%emt 0:00:16]} Rxg2+ {[%emt 0:00:23]} 66. Kh1 {[%emt 0:00:03]} Ra2 {[%emt 0:01:23]} 67. Rb6 {[%emt 0:00:12]} Kg5 {[%emt 0:00:09]} 68. Rxb5+ {[%emt 0:00:10]} Kh4 {[%emt 0:00:25]} 69. Re5 {[%emt 0:00:11]} Re2 {[%emt 0:01:47]} 70. a6 {[%emt 0:00:49]} Kg3 {[%emt 0:00:26]} 0-1

[Event "15th Arad Open 2022"]
[Site "Arad"]
[Date "2022.08.09"]
[Round "1.3"]
[White "Srbis, Jurica"]
[Black "Butolo, Alexandru-Mircea"]
[Result "1-0"]
[ECO "B45"]
[WhiteElo "2472"]
[BlackElo "1863"]
[Annotator "RC"]
[PlyCount "45"]
[EventDate "2022.08.08"]
[EventType "swiss"]
[EventCountry "ROU"]
[SourceTitle "playchess.com"]
[Source "ChessBase"]
[SourceQuality "1"]
[TimeControl "5400+30"]

1. e4 {[%emt 0:00:10]} c5 {[%emt 0:00:23]} 2. Nf3 {[%emt 0:00:30]} Nc6 {[%emt 0:00:30]} 3. d4 {[%emt 0:00:30]} cxd4 {[%emt 0:00:30]} 4. Nxd4 {[%emt 0:00:30]} Nf6 {[%emt 0:00:30]} 5. Nc3 {[%emt 0:00:30]} e6 {[%emt 0:00:30]} 6. Ndb5 {[%emt 0:00:30]} Bc5 {[%emt 0:00:30]} 7. Bf4 {[%emt 0:00:30]} O-O {[%emt 0:00:30]} 8. Bc7 {[%emt 0:00:30]} Qe7 {[%emt 0:00:30]} 9. Bd6 {[%emt 0:00:30]} Bxd6 {[%emt 0:00:30]} 10. Qxd6 {[%emt 0:00:30]} Qd8 {[%emt 0:00:30]} 11. Nc7 {[%emt 0:00:30]} Rb8 {[%emt 0:00:30]} 12. Be2 {[%emt 0:00:30]} a6 {[%emt 0:00:30]} 13. e5 {[%emt 0:00:30]} Ne8 {[%emt 0:00:30]} 14. Nxe8 {[%emt 0:00:30]} Rxe8 {[%emt 0:00:30]} 15. Bf3 {[%emt 0:00:30]} Qb6 {[%emt 0:00:30]} 16. O-O-O {[%emt 0:00:30]} Qa7 {[%emt 0:00:30]} 17. Rhe1 {[%emt 0:00:30]} b5 {[%emt 0:00:30]} 18. Bxc6 {[%emt 0:00:30]} dxc6 {[%emt 0:00:30]} 19. Ne4 {[%emt 0:00:30]} Bb7 {[%emt 0:00:30]} 20. Re3 {[%emt 0:00:30]} c5 {[%emt 0:00:30]} 21. Qxc5 {[%emt 0:00:30]} Qxc5 {[%emt 0:00:30]} 22. Nxc5 {[%emt 0:00:30]} Bxg2 {[%emt 0:00:30]} 23. Nd7 {[%emt 0:00:30]} 1-0

[Event "15th Arad Open 2022"]
[Site "Arad"]
[Date "2022.08.09"]
[Round "1.4"]
[White "Iuga, Ioan-Alexandru"]
[Black "Ramoutar, Alan-Safar"]
[Result "0-1"]
[ECO "B12"]
[WhiteElo "1848"]
[BlackElo "2453"]
[Annotator "RC"]
[PlyCount "78"]
[EventDate "2022.08.08"]
[EventType "swiss"]
[EventCountry "ROU"]
[SourceTitle "playchess.com"]
[Source "ChessBase"]
[SourceQuality "1"]
[TimeControl "5400+30"]

1. e4 {[%emt 0:00:04]} c6 {[%emt 0:00:02]} 2. d4 {[%emt 0:00:30]} d5 {[%emt 0:00:30]} 3. e5 {[%emt 0:00:30]} c5 {[%emt 0:00:30]} 4. dxc5 {[%emt 0:00:30]} e6 {[%emt 0:00:30]} 5. a3 {[%emt 0:00:30]} Nd7 {[%emt 0:00:30]} 6. b4 {[%emt 0:00:30]} Nxe5 {[%emt 0:00:30]} 7. Bb2 {[%emt 0:00:30]} Nc6 {[%emt 0:00:30]} 8. Nf3 {[%emt 0:00:30]} Nf6 {[%emt 0:00:30]} 9. Nbd2 {[%emt 0:00:30]} a5 {[%emt 0:00:30]} 10. Bb5 {[%emt 0:00:30]} Bd7 {[%emt 0:00:30]} 11. c3 {[%emt 0:00:30]} Be7 {[%emt 0:00:30]} 12. O-O {[%emt 0:00:30]} O-O {[%emt 0:00:30]} 13. Qe2 {[%emt 0:00:30]} Qc7 {[%emt 0:00:30]} 14. Rfe1 {[%emt 0:00:30]} Rfc8 {[%emt 0:00:30]} 15. Bd3 {[%emt 0:00:30]} Be8 {[%emt 0:00:30]} 16. Bc2 {[%emt 0:00:30]} Nd7 {[%emt 0:00:30]} 17. Qd3 {[%emt 0:00:30]} Nf8 {[%emt 0:00:30]} 18. c4 {[%emt 0:00:30]} axb4 {[%emt 0:00:30]} 19. axb4 {[%emt 0:00:30]} Rxa1 {[%emt 0:00:30]} 20. Bxa1 {[%emt 0:00:30]} f6 {[%emt 0:00:30]} 21. Qb3 {[%emt 0:00:30]} dxc4 {[%emt 0:00:30]} 22. Nxc4 {[%emt 0:00:30]} Bf7 {[%emt 0:00:30]} 23. Nb6 {[%emt 0:00:30]} Rd8 {[%emt 0:00:30]} 24. Bc3 {[%emt 0:00:30]} Ng6 {[%emt 0:00:30]} 25. Qb1 {[%emt 0:00:30]} Bf8 {[%emt 0:00:30]} 26. h4 {[%emt 0:00:30]} Kh8 {[%emt 0:00:30]} 27. h5 {[%emt 0:00:30]} Nf4 {[%emt 0:00:30]} 28. h6 {[%emt 0:00:30]} Bh5 {[%emt 0:00:30]} 29. Qb2 {[%emt 0:00:30]} Bxf3 {[%emt 0:00:30]} 30. gxf3 {[%emt 0:00:30]} e5 {[%emt 0:00:30]} 31. Re4 {[%emt 0:00:30]} Qf7 {[%emt 0:00:30]} 32. Rxf4 {[%emt 0:00:30]} exf4 {[%emt 0:00:30]} 33. hxg7+ {[%emt 0:00:30]} Bxg7 {[%emt 0:00:30]} 34. Qc1 {[%emt 0:00:30]} f5 {[%emt 0:00:30]} 35. Bd2 {[%emt 0:00:30]} Nd4 {[%emt 0:00:30]} 36. Bd1 {[%emt 0:00:30]} Qg6+ {[%emt 0:00:30]} 37. Kh2 {[%emt 0:00:30]} Qh5+ {[%emt 0:00:30]} 38. Kg2 {[%emt 0:00:30]} Rg8 {[%emt 0:00:30]} 39. Bxf4 {[%emt 0:00:30]} Bh6+ {[%emt 0:00:30]} 0-1

[Event "15th Arad Open 2022"]
[Site "Arad"]
[Date "2022.08.09"]
[Round "1.5"]
[White "David, Alexandru-Vasile"]
[Black "Kiraly, Lilla Virag"]
[Result "1-0"]
[ECO "E49"]
[WhiteElo "2433"]
[BlackElo "1787"]
[Annotator "RC"]
[PlyCount "57"]
[EventDate "2022.08.08"]
[EventType "swiss"]
[EventCountry "ROU"]
[SourceTitle "playchess.com"]
[Source "ChessBase"]
[SourceQuality "1"]
[TimeControl "5400+30"]

1. d4 {[%emt 0:00:22]} Nf6 {[%emt 0:02:12]} 2. c4 {[%emt 0:00:30]} e6 {[%emt 0:00:30]} 3. Nc3 {[%emt 0:00:30]} Bb4 {[%emt 0:00:30]} 4. e3 {[%emt 0:00:30]} O-O {[%emt 0:00:30]} 5. a3 {[%emt 0:00:30]} Bxc3+ {[%emt 0:00:30]} 6. bxc3 {[%emt 0:00:30]} d5 {[%emt 0:00:30]} 7. cxd5 {[%emt 0:00:30]} exd5 {[%emt 0:00:30]} 8. Bd3 {[%emt 0:00:30]} c5 {[%emt 0:00:30]} 9. Ne2 {[%emt 0:00:30]} c4 {[%emt 0:00:30]} 10. Bc2 {[%emt 0:00:30]} Re8 {[%emt 0:00:30]} 11. f3 {[%emt 0:00:30]} b6 {[%emt 0:00:30]} 12. O-O {[%emt 0:00:30]} Bb7 {[%emt 0:00:30]} 13. Ng3 {[%emt 0:00:30]} Nbd7 {[%emt 0:00:30]} 14. Re1 {[%emt 0:00:30]} Nf8 {[%emt 0:00:30]} 15. e4 {[%emt 0:00:30]} b5 {[%emt 0:00:30]} 16. e5 {[%emt 0:00:30]} N6d7 {[%emt 0:00:30]} 17. f4 {[%emt 0:00:30]} Qb6 {[%emt 0:00:30]} 18. Rb1 {[%emt 0:00:30]} a5 {[%emt 0:00:30]} 19. Kh1 {[%emt 0:00:30]} f6 {[%emt 0:00:30]} 20. Nf5 {[%emt 0:00:30]} Re6 {[%emt 0:00:30]} 21. Qg4 {[%emt 0:00:30]} g6 {[%emt 0:00:30]} 22. Nh6+ {[%emt 0:00:30]} Kh8 {[%emt 0:00:30]} 23. f5 {[%emt 0:00:30]} Re7 {[%emt 0:00:30]} 24. fxg6 {[%emt 0:00:30]} Nxg6 {[%emt 0:00:30]} 25. Bxg6 {[%emt 0:00:30]} hxg6 {[%emt 0:00:30]} 26. Qxg6 {[%emt 0:00:30]} fxe5 {[%emt 0:00:30]} 27. Nf7+ {[%emt 0:00:30]} Rxf7 {[%emt 0:00:30]} 28. Qxf7 {[%emt 0:00:30]} Qc6 {[%emt 0:00:30]} 29. Re3 {[%emt 0:00:30]} 1-0

[Event "15th Arad Open 2022"]
[Site "Arad"]
[Date "2022.08.09"]
[Round "1.6"]
[White "Cazan, Andrei"]
[Black "Secheres, Adrian-Simion"]
[Result "0-1"]
[ECO "A26"]
[WhiteElo "1833"]
[BlackElo "2360"]
[Annotator "RC"]
[PlyCount "106"]
[EventDate "2022.08.08"]
[EventType "swiss"]
[EventCountry "ROU"]
[SourceTitle "playchess.com"]
[Source "ChessBase"]
[SourceQuality "1"]
[TimeControl "5400+30"]

1. g3 {[%emt 0:00:14]} g6 {[%emt 0:00:53]} 2. Bg2 {[%emt 0:01:06]} Bg7 {[%emt 0:00:37]} 3. Nf3 {[%emt 0:01:24]} Nf6 {[%emt 0:00:13]} 4. O-O {[%emt 0:00:10]} O-O {[%emt 0:00:06]} 5. c4 {[%emt 0:03:06]} d6 {[%emt 0:00:31]} 6. Nc3 {[%emt 0:01:55]} Nc6 {[%emt 0:01:26]} 7. d3 {[%emt 0:08:21]} e5 {[%emt 0:00:41]} 8. Bd2 {[%emt 0:07:35]} h6 {[%emt 0:00:39]} 9. Rb1 {[%emt 0:06:54]} a5 {[%emt 0:00:24]} 10. b3 {[%emt 0:07:22]} Be6 {[%emt 0:00:35]} 11. a3 {[%emt 0:03:51]} Qd7 {[%emt 0:00:21]} 12. Re1 {[%emt 0:03:28]} Bh3 {[%emt 0:00:34]} 13. Bh1 {[%emt 0:02:06]} Ng4 {[%emt 0:00:09]} 14. e3 {[%emt 0:05:44]} f5 {[%emt 0:02:13]} 15. Nd5 {[%emt 0:09:28]} g5 {[%emt 0:04:03]} 16. Bc3 {[%emt 0:04:25]} f4 {[%emt 0:09:41]} 17. exf4 {[%emt 0:02:01]} gxf4 {[%emt 0:02:37]} 18. Bg2 {[%emt 0:04:31]} Bxg2 {[%emt 0:06:58]} 19. Kxg2 {[%emt 0:00:02]} fxg3 {[%emt 0:03:07]} 20. fxg3 {[%emt 0:02:37]} Ne7 {[%emt 0:07:54]} 21. Nxe7+ {[%emt 0:04:08]} Qxe7 {[%emt 0:00:13]} 22. Bd2 {[%emt 0:01:59]} Rf7 {[%emt 0:01:48]} 23. h3 {[%emt 0:03:00]} Nf6 {[%emt 0:00:49]} 24. Qe2 {[%emt 0:01:11]} Qd7 {[%emt 0:05:06]} 25. Rf1 {[%emt 0:01:55]} Qc6 {[%emt 0:02:16]} 26. Kh2 {[%emt 0:00:51]} e4 {[%emt 0:02:34]} 27. Nh4 {[%emt 0:02:30]} exd3 {[%emt 0:01:46]} 28. Qxd3 {[%emt 0:02:34]} Qe4 {[%emt 0:01:13]} 29. Qxe4 {[%emt 0:01:30]} Nxe4 {[%emt 0:00:05]} 30. Rxf7 {[%emt 0:02:23]} Kxf7 {[%emt 0:00:06]} 31. Rf1+ {[%emt 0:00:53]} Kg8 {[%emt 0:00:14]} 32. Bf4 {[%emt 0:01:09]} a4 {[%emt 0:01:36]} 33. b4 {[%emt 0:00:37]} Re8 {[%emt 0:06:00]} 34. Nf5 {[%emt 0:02:11]} h5 {[%emt 0:04:34]} 35. Nxg7 {[%emt 0:01:09]} Kxg7 {[%emt 0:00:02]} 36. Re1 {[%emt 0:00:24]} c6 {[%emt 0:02:06]} 37. Kg2 {[%emt 0:01:34]} Kf7 {[%emt 0:00:06]} 38. Re3 {[%emt 0:00:56]} d5 {[%emt 0:01:38]} 39. cxd5 {[%emt 0:00:06]} cxd5 {[%emt 0:00:03]} 40. Rd3 {[%emt 0:00:00]} Ke6 {[%emt 0:00:00]} 41. Kf3 {[%emt 0:00:00]} Rc8 {[%emt 0:00:00]} 42. g4 {[%emt 0:00:00]} hxg4+ {[%emt 0:00:00]} 43. hxg4 {[%emt 0:00:00]} Rc2 {[%emt 0:00:00]} 44. Be3 {[%emt 0:00:00]} Nd6 {[%emt 0:00:00]} 45. Bc5 {[%emt 0:00:00]} Nc4 {[%emt 0:00:00]} 46. Kf4 {[%emt 0:00:00]} Ne5 {[%emt 0:02:48]} 47. Rg3 {[%emt 0:00:04]} Rc4+ {[%emt 0:00:22]} 48. Kg5 {[%emt 0:01:11]} d4 {[%emt 0:04:27]} 49. Kf4 {[%emt 0:02:07]} d3+ {[%emt 0:00:37]} 50. Ke3 {[%emt 0:00:52]} Rc2 {[%emt 0:00:15]} 51. Rg1 {[%emt 0:00:56]} Re2+ {[%emt 0:00:26]} 52. Kf4 {[%emt 0:00:50]} d2 {[%emt 0:00:52]} 53. Rd1 {[%emt 0:00:33]} Nc4 {[%emt 0:00:14]} 0-1

[Event "15th Arad Open 2022"]
[Site "Arad"]
[Date "2022.08.09"]
[Round "1.7"]
[White "Stanciu, Alexandru-Ovidiu"]
[Black "Dinca, Ovidiu"]
[Result "1-0"]
[ECO "B13"]
[WhiteElo "2326"]
[BlackElo "1831"]
[Annotator "RC"]
[PlyCount "120"]
[EventDate "2022.08.08"]
[EventType "swiss"]
[EventCountry "ROU"]
[SourceTitle "playchess.com"]
[Source "ChessBase"]
[SourceQuality "1"]
[TimeControl "5400+30"]

1. d4 {[%emt 0:00:04]} d5 {[%emt 0:00:13]} 2. Bf4 {[%emt 0:00:05]} Nf6 {[%emt 0:00:19]} 3. e3 {[%emt 0:00:07]} c5 {[%emt 0:01:42]} 4. c3 {[%emt 0:05:18]} cxd4 {[%emt 0:00:09]} 5. exd4 {[%emt 0:00:07]} Nc6 {[%emt 0:00:11]} 6. Bd3 {[%emt 0:00:19]} g6 {[%emt 0:03:44]} 7. Nd2 {[%emt 0:01:30]} Bg7 {[%emt 0:00:07]} 8. Ngf3 {[%emt 0:00:08]} O-O {[%emt 0:00:09]} 9. h3 {[%emt 0:00:41]} Re8 {[%emt 0:01:55]} 10. O-O {[%emt 0:00:11]} Nh5 {[%emt 0:11:22]} 11. Bh2 {[%emt 0:00:45]} e5 {[%emt 0:01:22]} 12. dxe5 {[%emt 0:00:18]} Nxe5 {[%emt 0:00:34]} 13. Nxe5 {[%emt 0:04:50]} Bxe5 {[%emt 0:00:05]} 14. Bxe5 {[%emt 0:00:24]} Rxe5 {[%emt 0:00:03]} 15. Nf3 {[%emt 0:00:08]} Re8 {[%emt 0:00:50]} 16. Qd2 {[%emt 0:04:45]} Qf6 {[%emt 0:03:45]} 17. Qg5 {[%emt 0:03:31]} Qxg5 {[%emt 0:00:55]} 18. Nxg5 {[%emt 0:00:02]} Bd7 {[%emt 0:02:58]} 19. Rfd1 {[%emt 0:00:49]} Bc6 {[%emt 0:02:53]} 20. Nf3 {[%emt 0:02:41]} Nf4 {[%emt 0:01:07]} 21. Bf1 {[%emt 0:00:43]} Rad8 {[%emt 0:03:21]} 22. Nd4 {[%emt 0:08:39]} Ne6 {[%emt 0:01:42]} 23. f3 {[%emt 0:01:19]} Nxd4 {[%emt 0:01:17]} 24. Rxd4 {[%emt 0:00:03]} Re5 {[%emt 0:06:57]} 25. Kf2 {[%emt 0:00:36]} Rde8 {[%emt 0:00:24]} 26. Rad1 {[%emt 0:01:31]} b6 {[%emt 0:05:43]} 27. Bd3 {[%emt 0:12:59]} Kg7 {[%emt 0:02:22]} 28. Rd2 {[%emt 0:04:49]} h5 {[%emt 0:12:42]} 29. h4 {[%emt 0:02:40]} R8e7 {[%emt 0:05:41]} 30. a3 {[%emt 0:01:35]} Kf6 {[%emt 0:10:59]} 31. Bc2 {[%emt 0:21:31]} Rc7 {[%emt 0:05:36]} 32. Bb3 {[%emt 0:03:12]} Ke7 {[%emt 0:04:37]} 33. Bxd5 {[%emt 0:01:26]} Bxd5 {[%emt 0:00:07]} 34. Rxd5 {[%emt 0:00:04]} Rxd5 {[%emt 0:01:21]} 35. Rxd5 {[%emt 0:00:03]} Ke6 {[%emt 0:00:27]} 36. Rd4 {[%emt 0:00:25]} f6 {[%emt 0:04:08]} 37. Rd8 {[%emt 0:01:15]} Kf5 {[%emt 0:01:52]} 38. g3 {[%emt 0:05:06]} Re7 {[%emt 0:03:32]} 39. c4 {[%emt 0:02:20]} Rc7 {[%emt 0:00:33]} 40. b3 {[%emt 0:00:00]} g5 {[%emt 0:00:00]} 41. Rd5+ {[%emt 0:00:00]} Kg6 {[%emt 0:00:00]} 42. a4 {[%emt 0:00:00]} gxh4 {[%emt 0:00:00]} 43. gxh4 {[%emt 0:00:00]} Re7 {[%emt 0:00:00]} 44. b4 {[%emt 0:00:00]} Rc7 {[%emt 0:00:00]} 45. c5 {[%emt 0:00:00]} bxc5 {[%emt 0:00:00]} 46. bxc5 {[%emt 0:00:00]} Rc6 {[%emt 0:00:00]} 47. Ke3 {[%emt 0:00:00]} Ra6 {[%emt 0:00:00]} 48. Rd4 {[%emt 0:00:00]} Kf5 {[%emt 0:00:00]} 49. Rc4 {[%emt 0:00:00]} Rc6 {[%emt 0:00:00]} 50. Kd4 {[%emt 0:00:00]} Ke6 {[%emt 0:00:07]} 51. Ke4 {[%emt 0:00:00]} a5 {[%emt 0:02:26]} 52. Rc3 {[%emt 0:00:00]} Rc8 {[%emt 0:01:57]} 53. c6 {[%emt 0:00:00]} Rc7 {[%emt 0:02:11]} 54. Rc2 {[%emt 0:00:00]} Kd6 {[%emt 0:01:36]} 55. Kf5 {[%emt 0:00:00]} Ke7 {[%emt 0:00:18]} 56. Kg6 {[%emt 0:00:00]} Ke6 {[%emt 0:00:39]} 57. f4 {[%emt 0:00:00]} f5 {[%emt 0:00:41]} 58. Rc1 {[%emt 0:00:00]} Kd5 {[%emt 0:01:10]} 59. Kxf5 {[%emt 0:00:00]} Rxc6 {[%emt 0:01:11]} 60. Rxc6 {[%emt 0:00:00]} Kxc6 {[%emt 0:00:00]} 1-0

[Event "15th Arad Open 2022"]
[Site "Arad"]
[Date "2022.08.09"]
[Round "1.8"]
[White "Deac, David"]
[Black "Ardeleanu, Alin"]
[Result "0-1"]
[ECO "B28"]
[WhiteElo "1829"]
[BlackElo "2290"]
[Annotator "RC"]
[PlyCount "60"]
[EventDate "2022.08.08"]
[EventType "swiss"]
[EventCountry "ROU"]
[SourceTitle "playchess.com"]
[Source "ChessBase"]
[SourceQuality "1"]
[TimeControl "5400+30"]

1. e4 {[%emt 0:00:07]} c5 {[%emt 0:00:11]} 2. Nf3 {[%emt 0:00:14]} a6 {[%emt 0:00:06]} 3. c4 {[%emt 0:01:18]} d6 {[%emt 0:00:18]} 4. d4 {[%emt 0:00:40]} Bg4 {[%emt 0:01:01]} 5. dxc5 {[%emt 0:02:04]} Bxf3 {[%emt 0:00:27]} 6. Qxf3 {[%emt 0:00:58]} dxc5 {[%emt 0:00:41]} 7. Be2 {[%emt 0:06:43]} Nc6 {[%emt 0:00:13]} 8. O-O {[%emt 0:01:01]} Nd4 {[%emt 0:00:55]} 9. Qd3 {[%emt 0:00:38]} e6 {[%emt 0:01:07]} 10. Nc3 {[%emt 0:01:53]} Ne7 {[%emt 0:01:05]} 11. Bd1 {[%emt 0:01:54]} Nec6 {[%emt 0:03:38]} 12. Ba4 {[%emt 0:10:32]} Be7 {[%emt 0:04:58]} 13. Rd1 {[%emt 0:02:46]} Qc7 {[%emt 0:19:13]} 14. Nd5 {[%emt 0:18:32]} exd5 {[%emt 0:03:20]} 15. exd5 {[%emt 0:00:29]} b5 {[%emt 0:20:25]} 16. cxb5 {[%emt 0:01:56]} axb5 {[%emt 0:01:54]} 17. Bxb5 {[%emt 0:01:02]} Rd8 {[%emt 0:01:06]} 18. Re1 {[%emt 0:27:53]} Nxb5 {[%emt 0:11:13]} 19. Qxb5 {[%emt 0:00:17]} Rxd5 {[%emt 0:00:08]} 20. Bf4 {[%emt 0:08:03]} Qd7 {[%emt 0:01:34]} 21. a4 {[%emt 0:03:33]} O-O {[%emt 0:00:49]} 22. a5 {[%emt 0:00:23]} Nd4 {[%emt 0:11:14]} 23. Qc4 {[%emt 0:01:37]} Bg5 {[%emt 0:01:45]} 24. Bg3 {[%emt 0:02:17]} Ne6 {[%emt 0:05:13]} 25. a6 {[%emt 0:01:36]} Rd4 {[%emt 0:00:11]} 26. Qc3 {[%emt 0:01:46]} Bd2 {[%emt 0:02:43]} 27. Qf3 {[%emt 0:01:39]} Bxe1 {[%emt 0:04:11]} 28. Rxe1 {[%emt 0:01:52]} Ra4 {[%emt 0:00:34]} 29. Qb7 {[%emt 0:00:46]} Qxb7 {[%emt 0:00:33]} 30. axb7 {[%emt 0:00:01]} Rb4 {[%emt 0:00:16]} 0-1